bitfinex/quotes_ETHUSD_20250801
["timestamp","ask_amount","ask_price","bid_price","bid_amount"]
[1754034624014,0.986,3648.2,3647.6,0.4709]
[1754034624234,0.8492,3648.2,3647.6,0.4709]
[1754034624381,0.1368,3647.8,3647.3,0.1368]
[1754034624583,0.1368,3647.6,3647.0,0.1368]
[1754034625034,0.8492,3647.7,3647.1,0.14063]
[1754034625326,0.1368,3647.4,3647.1,0.14063]
[1754034625681,0.8492,3647.7,3647.1,0.14063]
[1754034625913,0.1368,3647.2,3646.6,3.0]
[1754034626123,0.8492,3647.7,3646.4,0.1368]
[1754034626311,0.1368,3647.0,3646.7,1.2695]
[1754034626485,0.1368,3647.0,3646.4,0.1368]
[1754034626686,0.1368,3647.0,3646.8,1.2695]
[1754034626882,0.1368,3647.0,3646.8,0.7986]
[1754034627090,0.1368,3647.0,3646.9,1.2695]
[1754034627282,0.55,3648.4,3646.9,1.2695]
[1754034627488,0.1368,3647.0,3646.9,1.2695]
[1754034627689,0.8492,3647.9,3646.9,1.2695]
[1754034627890,0.1368,3647.2,3646.9,1.2695]
[1754034628225,0.1368,3647.2,3647.0,1.2695]
[1754034628525,0.1368,3647.2,3646.7,3.0]
[1754034628730,0.8492,3647.1,3646.0,17.9863432]
[1754034629022,0.1368,3646.8,3646.2,0.1368]
[1754034629222,0.8492,3646.7,3646.2,0.1368]
[1754034629424,0.1368,3646.8,3646.2,0.1368]
[1754034629643,0.8492,3646.6,3645.7,1.2695]
[1754034629795,0.1368,3646.1,3645.7,1.2695]
[1754034629990,0.1368,3646.1,3645.8,0.14063]
[1754034630413,0.1368,3646.1,3645.8,1.41013]
[1754034630616,0.1368,3646.1,3645.8,0.14063]
[1754034630827,0.8492,3646.1,3645.5,1.2695]
[1754034631014,0.1368,3645.7,3645.2,1.4063]
[1754034631227,0.8492,3646.3,3645.1,0.002]
[1754034631442,0.1368,3645.3,3645.1,0.002]
[1754034632127,0.986,3645.3,3645.1,0.002]
[1754034633402,0.8492,3645.2,3645.1,0.002]
[1754034635207,1.22211214,3645.2,3645.1,0.002]
[1754034635409,0.8492,3645.2,3645.1,0.002]
[1754034635605,0.1368,3645.3,3645.1,0.002]
[1754034636110,0.986,3645.3,3645.1,0.002]
[1754034637643,0.1368,3645.3,3645.1,0.002]
[1754034637947,1.2457,3645.2,3645.1,0.002]
[1754034638249,1.6582748,3645.2,3645.1,0.002]
[1754034638446,1.2457,3645.2,3645.1,0.002]
[1754034638607,0.8492,3645.2,3645.1,0.002]
[1754034638813,0.1368,3645.3,3645.1,0.002]
[1754034639715,0.1368,3645.3,3645.2,1.2695]
[1754034639926,0.1368,3645.7,3645.4,3.0]
[1754034640148,0.1368,3645.7,3645.2,1.29693333]
[1754034640149,0.1368,3645.8,3645.6,3.0]
[1754034640315,0.1368,3645.8,3645.7,1.2695]
[1754034640511,0.8492,3646.7,3645.7,1.2695]
[1754034640813,0.8492,3646.7,3645.6,3.0]
[1754034640814,0.1368,3646.0,3645.8,1.2695]
[1754034641011,0.8492,3646.4,3645.4,1.2695]
[1754034641217,0.8492,3646.4,3645.1,1.2715]
[1754034641218,0.55,3646.3,3645.1,1.2715]
[1754034641440,3.0,3648.0,3645.1,0.8006]
[1754034641646,0.1368,3645.8,3645.2,1.4063]
[1754034641905,0.1368,3645.8,3645.2,0.1368]
[1754034642058,0.1368,3645.8,3645.3,1.2695]
[1754034642257,0.1368,3645.8,3645.4,1.2695]
[1754034642461,0.1368,3645.8,3645.5,1.2695]
[1754034642655,0.1368,3645.8,3645.2,0.1368]
[1754034642861,0.1368,3645.3,3645.1,0.002]
[1754034643361,0.1368,3645.3,3645.2,1.2695]
[1754034644162,0.1368,3645.3,3645.2,0.4709]
[1754034644855,0.1368,3645.3,3645.2,1.2695]
[1754034645294,7.06,3646.5,3645.2,1.2695]
[1754034645497,0.8492,3646.0,3645.1,0.002]
[1754034645709,0.1368,3645.3,3645.1,0.002]
[1754034646221,4.53903369,3645.2,3645.1,0.002]
[1754034646515,5.2809414,3645.2,3645.1,0.002]
[1754034646982,12.3409414,3645.2,3645.1,0.002]
[1754034649589,3.29340895,3645.1,3645.0,1e-08]
[1754034649935,3.29340895,3645.1,3642.5,0.13121315]
[1754034649936,0.55,3644.2,3642.2,0.1376]
[1754034650119,0.1376,3642.3,3641.9,0.4616]
[1754034650288,0.55,3643.2,3642.0,0.4616]
[1754034650494,0.1376,3642.1,3642.0,0.4616]
[1754034651125,0.1376,3642.1,3641.6,0.4636]
[1754034651325,0.1376,3641.8,3641.6,0.4636]
[1754034651528,0.1376,3641.8,3641.7,0.4636]
[1754034651893,0.1376,3641.8,3641.7,0.002]
[1754034655136,7.4565,3643.2,3641.7,0.4636]
[1754034655546,7.06,3643.2,3642.0,3.0]
[1754034655845,7.06,3643.3,3642.2,2.74559332]
[1754034656020,7.06,3643.9,3642.5,3.0]
[1754034656209,0.74565,3643.8,3642.6,0.4616]
[1754034656928,0.74565,3643.8,3642.6,3.4616]
[1754034657130,0.74565,3643.8,3642.6,0.4616]
[1754034657520,0.8317,3644.5,3643.0,3.0]
[1754034657715,0.3965,3644.7,3643.1,0.4616]
[1754034657914,0.3965,3644.7,3643.2,3.0]
[1754034658129,0.3965,3644.7,3643.3,0.4616]
[1754034658747,0.8317,3645.1,3643.5,3.0]
[1754034658920,0.8317,3645.1,3643.6,0.4616]
[1754034659344,0.3965,3645.6,3643.9,3.0]
[1754034659645,0.50555277,3645.5,3644.0,0.48904237]
[1754034659845,0.25277625,3645.4,3644.0,6.23326859]
[1754034660049,0.3965,3645.6,3644.1,0.48904161]
[1754034660350,0.8317,3645.8,3644.1,0.4616]
[1754034660523,0.8317,3645.8,3643.8,0.8653]
[1754034660524,2.74304116,3645.6,3643.8,0.4616]
[1754034660744,0.55,3645.4,3643.8,0.4616]
[1754034661045,0.55,3645.2,3643.8,0.4616]
[1754034662076,0.3965,3645.1,3643.8,0.4616]
[1754034662262,0.3965,3645.1,3643.3,0.8653]
[1754034662571,0.55,3644.9,3643.3,1.3269]
[1754034662781,0.55,3644.7,3643.3,0.4616]
[1754034663279,0.55,3644.7,3643.3,3.4616]
[1754034663481,0.8317,3645.0,3643.3,0.4616]
[1754034663482,0.55,3644.9,3643.3,0.4616]
[1754034663643,0.55,3644.3,3642.9,0.4616]
[1754034663844,0.55,3644.1,3642.9,0.4616]
[1754034664475,0.55,3643.9,3642.9,0.4616]
[1754034664788,0.55,3643.4,3642.2,0.8653]
[1754034665142,0.55,3643.5,3642.1,0.4616]
[1754034665584,0.32945885,3643.4,3642.1,0.4616]
[1754034665771,0.1376,3642.3,3642.1,0.4616]
[1754034666084,0.1376,3642.3,3641.7,0.8673]
[1754034666085,0.1376,3642.3,3641.7,0.002]
[1754034666282,0.1376,3641.8,3641.7,0.002]
[1754034666903,4.66169488,3641.8,3641.7,0.002]
[1754034667084,4.66169488,3641.8,3641.6,0.002]
[1754034667085,2.7461211,3641.5,3639.6,0.4616]
[1754034667379,3.29634735,3641.2,3639.6,0.4616]
[1754034667684,3.43394735,3641.2,3639.6,0.4616]
[1754034667873,4.65814735,3641.2,3639.6,0.4616]
[1754034668073,1.9118,3641.2,3639.6,0.4616]
[1754034668279,4.84932735,3641.2,3639.6,0.4616]
[1754034668860,2.10298,3641.2,3639.6,0.4616]
[1754034669255,1.71048,3641.2,3640.0,0.4616]
[1754034669494,0.87878,3641.2,3640.0,0.4616]
[1754034669795,1.5193,3641.2,3639.7,0.8653]
[1754034670095,1.9118,3641.2,3639.9,0.4616]
[1754034670299,0.6876,3641.2,3640.4,0.4616]
[1754034670499,0.1376,3641.2,3640.4,0.4616]
[1754034670666,0.1376,3641.2,3640.1,0.8653]
[1754034670864,0.1376,3641.2,3640.5,0.4616]
[1754034671793,0.8317,3642.5,3641.1,0.4636]
[1754034671973,0.1376,3641.2,3641.1,0.4636]
[1754034672303,0.1376,3641.2,3641.1,0.002]
[1754034672663,0.6876,3641.2,3641.1,0.002]
[1754034672888,2.2551794,3641.2,3641.1,0.002]
[1754034673102,1.0309794,3641.2,3641.1,0.002]
[1754034673491,5.00152675,3641.2,3641.1,0.002]
[1754034673691,4.65814735,3641.2,3641.1,0.002]
[1754034674002,0.6876,3641.2,3641.1,0.002]
[1754034674577,0.1376,3641.2,3641.1,0.002]
[1754034675100,0.1376,3641.2,3641.1,1.3289]
[1754034675301,0.32945885,3643.4,3641.2,3.0]
[1754034675502,0.1376,3641.9,3641.5,3.0]
[1754034675721,0.1376,3641.9,3641.4,3.1376]
[1754034675917,0.1376,3641.9,3641.7,2.74595069]
[1754034676070,0.1376,3642.3,3642.0,3.0]
[1754034676276,0.1376,3642.3,3642.1,1.3269]
[1754034676514,0.1376,3642.3,3642.2,0.02745593]
[1754034676671,0.1376,3642.4,3642.2,1.2989]
[1754034676867,0.1376,3642.4,3642.3,0.4357]
[1754034677094,3.59535751,3643.6,3642.3,0.4357]
[1754034677374,0.50289754,3643.5,3642.3,0.4357]
[1754034677569,0.8508,3643.6,3642.3,0.4357]
[1754034677570,0.91271487,3643.4,3642.3,0.4357]
[1754034677918,0.1376,3642.4,3642.3,0.4357]
[1754034678122,0.40981733,3643.4,3642.3,1.2989]
[1754034678272,0.1376,3642.5,3642.3,1.2989]
[1754034678475,0.1376,3642.5,3642.3,0.4357]
[1754034678709,0.55,3642.9,3641.7,0.4357]
[1754034678944,0.25161394,3642.8,3641.7,1.2989]
[1754034679065,0.25161394,3642.7,3641.8,0.4357]
[1754034679271,0.3925,3643.7,3641.8,0.4357]
[1754034679272,0.25172164,3642.6,3641.9,0.02745819]
[1754034679503,0.8508,3643.8,3642.0,4.2989]
[1754034679709,0.50349676,3643.7,3642.1,0.4357]
[1754034679880,0.50349676,3643.6,3642.3,3.0]
[1754034680083,0.50349676,3643.5,3642.6,2.7452676]
[1754034680413,0.50349676,3643.4,3642.7,1.2989]
[1754034680569,0.50349676,3643.3,3642.7,0.8632]
[1754034680777,0.50349676,3643.2,3642.8,0.4357]
[1754034681012,0.50351871,3643.1,3642.9,0.8632]
[1754034681211,0.25174995,3643.0,3642.7,3.0]
[1754034681507,0.25174995,3642.9,3642.8,2.7451411]
[1754034681670,7.06,3644.5,3642.9,5.74503151]
[1754034681871,1.20968574,3644.4,3643.1,2.74491504]
[1754034682096,0.50368574,3644.3,3643.2,1.2989]
[1754034682295,0.50368574,3644.2,3643.3,0.4357]
[1754034682506,0.50368574,3644.1,3643.3,0.4357]
[1754034682676,0.50368574,3644.0,3643.3,0.4357]
[1754034683007,0.50368574,3643.9,3643.3,0.4357]
[1754034683166,0.706,3644.4,3643.3,0.4357]
[1754034683367,0.25197105,3644.3,3643.3,0.4357]
[1754034684611,0.706,3644.4,3643.3,0.4357]
[1754034684913,0.80196293,3644.3,3643.3,0.4357]
[1754034685213,0.55,3644.3,3643.3,0.4357]
[1754034685707,0.55,3644.3,3642.9,0.4357]
[1754034686633,0.55,3644.3,3642.9,3.4357]
[1754034686770,0.706,3644.4,3643.0,1.2989]
[1754034687081,0.706,3644.4,3643.1,3.4357]
[1754034687282,0.706,3644.4,3643.2,0.4357]
[1754034687788,0.706,3644.4,3643.3,3.89064764]
[1754034687989,0.55,3643.6,3641.1,0.002]
[1754034688187,0.55,3644.2,3641.2,1.2989]
[1754034688394,0.55,3643.2,3641.3,1.2989]
[1754034688593,0.1376,3641.7,3641.3,0.8632]
[1754034688914,0.1376,3641.7,3641.4,1.2989]
[1754034689277,0.1376,3641.7,3641.4,0.14385]
[1754034689575,0.1376,3641.7,3641.5,1.2989]
[1754034689804,0.1376,3641.7,3641.1,0.1396]
[1754034689805,0.1376,3641.7,3641.6,1.2989]
[1754034690899,0.1376,3641.7,3641.1,0.1396]
[1754034690900,0.1376,3641.7,3641.1,0.002]
[1754034691102,0.1376,3641.4,3641.1,0.002]
[1754034691319,0.1376,3641.4,3641.2,0.4357]
[1754034691639,0.1376,3641.4,3641.3,3.8632]
[1754034691791,0.1376,3641.8,3641.3,1.02826271]
[1754034692098,0.1376,3641.8,3641.4,0.4357]
[1754034692425,0.1376,3641.8,3641.5,3.89066121]
[1754034692623,0.1376,3641.8,3641.6,1.2989]
[1754034692994,0.1376,3641.8,3641.7,1.2989]
[1754034693224,0.1376,3641.8,3641.7,0.4357]
[1754034694306,0.1376,3641.8,3641.7,1.2989]
[1754034695893,0.1376,3641.8,3641.1,2.74839669]
[1754034695894,0.1376,3641.8,3641.1,0.4377]
[1754034696092,0.1376,3641.2,3641.1,0.4377]
[1754034696393,0.1376,3641.2,3641.1,0.002]
[1754034697128,0.1376,3641.2,3641.1,0.4377]
[1754034697286,0.1376,3641.2,3641.1,1.3009]
[1754034697488,0.8508,3642.4,3641.1,1.3009]
[1754034697716,0.14008,3642.3,3641.2,0.46316347]
[1754034697921,0.1376,3641.4,3641.2,0.46316347]
[1754034698132,8.3033,3642.9,3641.3,1.2989]
[1754034698359,0.1376,3641.7,3641.4,0.4357]
[1754034698564,8.3033,3642.9,3641.6,3.0]
[1754034698761,0.1376,3641.8,3641.5,3.8632]
[1754034699054,0.1376,3641.8,3641.7,0.4357]
[1754034699463,0.1376,3641.8,3641.3,0.5733]
[1754034699757,0.1376,3641.8,3641.4,1.2989]
[1754034699958,0.1376,3641.4,3641.1,0.002]
[1754034700130,0.55,3642.3,3641.1,0.002]
[1754034700332,0.8508,3642.8,3641.2,1.2989]
[1754034700631,0.1376,3641.6,3641.3,0.4357]
[1754034700832,0.1376,3641.6,3641.5,5.7461211]
[1754034701063,0.1376,3642.2,3641.9,2.74577016]
[1754034701374,0.1376,3642.2,3642.0,0.4357]
[1754034701666,0.1376,3642.2,3642.0,1.32635744]
[1754034701860,0.1376,3642.2,3642.1,4.0445687]
[1754034702026,0.8508,3643.4,3642.1,1.2989]
[1754034702230,0.1376,3642.5,3642.3,3.0]
[1754034702430,0.8508,3643.9,3642.4,4.2989]
[1754034702621,7.06,3644.1,3642.5,1.32635367]
[1754034702963,0.1376,3643.1,3642.7,3.0]
[1754034703133,0.8508,3644.4,3643.0,2.74497056]
[1754034703339,0.1376,3643.2,3643.1,3.18059807]
[1754034703542,0.1376,3643.2,3643.1,0.4357]
[1754034704124,0.1376,3643.2,3643.1,7.04381504]
[1754034704532,0.1376,3643.7,3643.3,3.0]
[1754034705054,0.1376,3643.7,3643.2,2.74479409]
[1754034705055,0.1376,3643.7,3643.4,1.2989]
[1754034705370,0.1376,3643.7,3643.1,2.88249504]
[1754034705371,0.1376,3643.7,3643.1,0.1376]
[1754034705522,0.8508,3643.9,3642.9,1.2989]
[1754034705745,0.1376,3643.2,3643.1,5.74491]
[1754034706066,0.8508,3644.2,3643.2,3.0]
[1754034706226,0.1376,3643.4,3643.1,4.04381]
[1754034706425,0.1376,3643.4,3643.2,3.97473766]
[1754034706658,0.8508,3644.2,3643.3,1.2299]
[1754034706833,0.1376,3643.6,3643.3,1.2299]
[1754034707038,0.1376,3643.6,3643.3,3.97465906]
[1754034707237,0.1376,3643.6,3643.4,3.97458749]
[1754034707435,0.1376,3643.6,3643.4,1.2299]
[1754034707957,0.1376,3643.6,3642.8,1.2299]
[1754034708159,0.8066,3644.1,3643.0,2.74494028]
[1754034708364,0.1376,3643.3,3642.9,2.74504556]
[1754034708659,0.1376,3643.3,3643.0,0.4327]
[1754034708863,0.1376,3643.3,3642.8,5.74508052]
[1754034709027,0.1376,3643.3,3643.0,1.2299]
[1754034709539,0.1376,3643.3,3643.1,1.2299]
[1754034709928,0.1376,3643.3,3642.7,0.1376]
[1754034710123,0.1376,3642.8,3642.4,2.74543803]
[1754034710364,0.1376,3642.8,3642.3,1.2299]
[1754034710365,0.1376,3642.6,3642.5,1.2299]
[1754034710749,0.1376,3642.6,3641.9,1.2299]
[1754034711065,0.1376,3642.4,3642.2,2.74554588]
[1754034711268,0.1376,3642.4,3642.2,1.2299]
[1754034711466,0.1376,3642.4,3642.2,0.4327]
[1754034711652,0.1376,3642.4,3641.9,0.9348]
[1754034711965,0.1376,3642.4,3641.9,0.1376]
[1754034712324,0.1376,3642.4,3642.3,2.74551794]
[1754034712557,7.06,3645.3,3642.4,3.0]
[1754034712762,0.1376,3643.2,3642.5,4.2299]
[1754034712967,0.1376,3643.2,3642.7,2.88280731]
[1754034713277,0.1376,3643.2,3642.9,3.0]
[1754034713469,0.1376,3643.2,3643.1,5.74491504]
[1754034713760,0.1376,3643.2,3643.1,3.0]
[1754034714267,0.1376,3643.4,3643.1,1.2299]
[1754034714567,0.8066,3644.3,3643.2,1.2299]
[1754034714769,0.1376,3643.5,3643.2,1.2299]
[1754034715633,0.1376,3643.5,3643.2,0.4327]
[1754034715955,0.1376,3644.0,3643.6,3.0]
[1754034716133,0.8066,3644.7,3643.7,4.25734463]
[1754034716329,0.3925,3645.1,3643.7,4.25734463]
[1754034716330,0.8066,3645.1,3644.0,3.0]
[1754034716534,0.8066,3645.1,3644.1,1.2299]
[1754034716535,0.1376,3644.3,3644.1,1.2299]
[1754034716781,0.8066,3645.1,3644.2,1.2299]
[1754034716984,0.1368,3644.4,3644.2,1.2299]
[1754034717130,0.1368,3644.4,3644.2,0.7972]
[1754034717754,0.1368,3644.4,3644.2,1.2299]
[1754034718053,0.1368,3644.4,3644.3,0.4327]
[1754034718240,0.1368,3644.4,3644.3,1.2299]
[1754034718965,0.1368,3644.4,3643.9,1.2299]
[1754034719462,0.1368,3644.4,3644.0,0.4327]
[1754034719636,0.1368,3644.4,3644.0,1.2299]
[1754034719836,0.1368,3644.4,3644.0,0.7972]
[1754034720064,0.1368,3644.4,3644.1,1.2299]
[1754034720528,0.1368,3644.4,3644.1,0.7972]
[1754034720730,0.1368,3644.4,3643.8,1.2299]
[1754034720933,0.8066,3644.3,3643.1,1.2299]
[1754034721241,0.1376,3643.8,3642.8,0.1376]
[1754034721442,0.1376,3643.3,3642.8,0.1376]
[1754034721772,0.1376,3643.3,3642.9,1.2299]
[1754034722451,0.1376,3643.3,3643.0,1.2299]
[1754034722849,0.1376,3643.3,3643.1,1.2299]
[1754034723250,0.1376,3643.3,3643.2,1.25734839]
[1754034723434,0.1376,3643.3,3643.2,1.2299]
[1754034724746,0.001,3644.4,3643.2,1.25734839]
[1754034724946,0.001,3644.4,3643.3,0.7972]
[1754034724947,0.1376,3643.7,3643.3,0.7972]
[1754034725148,0.1376,3643.7,3643.4,1.2299]
[1754034725744,0.1376,3643.7,3643.5,1.2299]
[1754034726149,0.1376,3643.7,3643.6,1.2299]
[1754034726559,0.1376,3643.7,3643.6,0.4327]
[1754034727084,0.001,3644.4,3643.7,3.0]
[1754034727277,0.1376,3644.2,3643.8,2.7443808]
[1754034727460,0.1376,3644.2,3643.9,1.2299]
[1754034728070,0.1376,3644.2,3644.0,0.4327]
[1754034728667,0.1376,3644.2,3643.7,3.0]
[1754034728869,0.1376,3644.2,3643.8,1.2299]
[1754034729057,0.001,3644.4,3643.9,3.0]
[1754034729247,0.1376,3644.3,3643.9,3.0]
[1754034729448,0.1376,3644.3,3644.0,1.2299]
[1754034729657,0.001,3644.4,3644.1,3.02744161]
[1754034729844,0.1378,3644.4,3644.1,1.2299]
[1754034730259,0.1378,3644.4,3644.2,1.2299]
[1754034730906,0.001,3644.4,3644.3,4.2299]
[1754034731250,0.001,3644.4,3644.3,7.0013513]
[1754034731492,0.001,3644.4,3644.3,7.11151119]
[1754034731658,0.001,3644.8,3644.7,5.74371004]
[1754034732144,0.001,3644.8,3644.7,6.97361004]
[1754034732344,0.001,3644.8,3644.7,7.11041004]
[1754034732576,0.001,3644.8,3644.7,4.3667]
[1754034732882,0.001,3644.8,3644.7,7.11041004]
[1754034733077,0.001,3644.8,3644.7,4.3667]
[1754034733452,0.001,3644.8,3644.7,3.5695]
[1754034733655,0.001,3644.8,3644.7,3.1368]
[1754034733968,0.001,3644.8,3644.7,7.11041004]
[1754034734508,0.001,3644.8,3644.7,4.3667]
[1754034734797,0.001,3644.8,3644.7,3.0]
[1754034734999,0.001,3644.8,3644.7,6.97361004]
[1754034735294,0.001,3644.8,3644.6,0.1368]
[1754034735606,0.001,3644.8,3644.7,4.2299]
[1754034736017,0.001,3644.8,3644.7,1.2299]
[1754034736218,0.8076,3644.8,3644.0,1.2299]
[1754034736515,0.1368,3644.7,3643.7,0.7972]
[1754034736680,0.8076,3644.8,3644.0,3.0]
[1754034736879,0.1376,3644.3,3643.9,3.20966349]
[1754034737107,0.1376,3644.3,3644.0,4.2605]
[1754034737408,0.1376,3644.3,3644.0,1.2605]
[1754034737568,0.1376,3644.3,3643.8,2.88196915]
[1754034737773,0.1376,3644.3,3643.8,1.3981]
[1754034738025,0.1376,3644.3,3643.8,0.603]
[1754034738337,0.1376,3644.3,3643.7,3.0]
[1754034738529,0.1376,3644.3,3643.7,3.1376]
[1754034738690,0.1376,3643.9,3643.5,3.20879528]
[1754034738871,0.1376,3643.9,3643.5,0.20879528]
[1754034739071,0.1376,3643.9,3643.4,5.74464103]
[1754034739284,0.1376,3643.9,3643.4,2.74468133]
[1754034739485,0.1376,3643.9,3643.4,3.4654]
[1754034739811,0.1376,3643.9,3643.3,0.1376]
[1754034739974,0.1376,3643.4,3642.9,0.1376]
[1754034740304,0.1376,3643.4,3642.8,0.1376]
[1754034740305,0.9342,3643.4,3642.8,0.1376]
[1754034740511,0.9342,3643.4,3642.9,0.28828047]
[1754034741390,0.9342,3643.4,3642.9,0.20522649]
[1754034741604,0.9342,3643.4,3642.8,0.1376]
[1754034741976,0.1376,3643.4,3642.8,3.1376]
[1754034742180,0.1376,3643.4,3642.8,0.1376]
[1754034742381,0.1376,3643.4,3643.0,3.0]
[1754034742610,0.1376,3643.4,3643.1,1.2605]
[1754034744825,0.1376,3643.4,3643.1,1.2625]
[1754034745697,0.7966,3644.3,3643.4,3.0]
[1754034746039,0.1376,3643.7,3643.2,1.2605]
[1754034746406,0.1376,3643.7,3643.2,3.7951]
[1754034746612,0.1376,3643.7,3643.3,1.2605]
[1754034746797,0.1376,3643.7,3643.5,2.74456676]
[1754034746997,0.1376,3643.9,3643.6,3.0]
[1754034747506,0.1376,3643.9,3643.7,1.28794463]
[1754034747811,0.1376,3643.9,3643.3,3.1376]
[1754034747993,0.1376,3643.9,3643.3,3.9327]
[1754034748322,0.1376,3643.9,3643.4,0.4654]
[1754034748528,0.1376,3643.9,3643.5,4.2605]
[1754034748729,0.1376,3643.9,3643.5,3.7951]
[1754034748929,0.1376,3643.9,3643.6,0.4654]
[1754034749427,0.7966,3643.8,3643.3,0.1376]
[1754034749628,0.1376,3643.6,3643.1,0.002]
[1754034749832,0.1376,3643.3,3643.1,0.002]
[1754034751225,0.7966,3644.4,3643.3,3.0]
[1754034751625,0.7966,3644.4,3643.4,1.2605]
[1754034751837,0.7966,3644.4,3643.7,3.0]
[1754034751999,0.7966,3644.4,3643.8,0.02744387]
[1754034752205,0.7966,3644.4,3643.4,1.2605]
[1754034753539,0.7966,3644.4,3643.2,5.7448243]
[1754034753754,0.3925,3644.3,3643.0,3.0]
[1754034754040,4.7215,3644.3,3643.0,3.0]
[1754034754242,4.7215,3644.3,3642.9,3.20886649]
[1754034754452,0.7966,3644.2,3642.9,2.95391968]
[1754034754604,1.34841,3644.2,3642.9,2.95391968]
[1754034754798,1.34841,3644.2,3642.9,0.20886649]
[1754034755005,0.7966,3644.1,3642.9,2.95387177]
[1754034755455,0.7966,3644.1,3643.1,3.002]
[1754034755739,4.327,3644.1,3643.3,16.31763404]
[1754034755961,7.06,3644.7,3643.4,1.28794689]
[1754034756113,11.387,3644.7,3643.9,3.0]
[1754034756604,11.387,3644.7,3643.8,1.2605]
[1754034757228,7.06,3644.7,3643.8,4.00487529]
[1754034757444,4.328,3644.6,3643.8,4.00488474]
[1754034757615,4.328,3644.6,3644.1,3.0]
[1754034757815,4.326,3644.6,3644.0,3.0]
[1754034758040,7.3926,3644.8,3644.1,0.4654]
[1754034758041,0.7976,3644.8,3644.1,0.4654]
[1754034758248,4.326,3644.7,3644.1,4.2605]
[1754034758471,0.001,3644.8,3644.1,4.00462565]
[1754034758619,4.325,3644.7,3644.3,2.74396115]
[1754034758954,4.325,3644.7,3644.2,0.02744086]
[1754034758955,4.325,3644.7,3644.4,4.03187308]
[1754034759419,4.325,3644.7,3644.4,4.28793935]
[1754034759743,0.001,3644.8,3644.3,2.74400531]
[1754034760129,0.001,3644.8,3644.1,2.74415886]
[1754034760130,0.7966,3644.7,3644.1,2.74415886]
[1754034760528,0.7966,3644.7,3644.0,5.74418463]
[1754034760739,0.7966,3644.7,3644.0,5.74422273]
[1754034761053,0.7966,3644.7,3644.1,2.74412774]
[1754034761276,0.1368,3644.7,3644.1,2.88172774]
[1754034761920,0.1368,3644.7,3644.5,3.0]
[1754034762119,4.4618,3644.7,3644.5,3.0]
[1754034762379,4.4618,3644.7,3644.3,3.0]
[1754034762668,4.4618,3644.7,3644.3,2.74401062]
[1754034762874,4.4618,3644.7,3644.3,3.0]
[1754034763074,5.2584,3644.7,3644.1,5.88173857]
[1754034763234,0.7966,3644.6,3644.3,3.0]
[1754034763578,0.7966,3644.6,3644.1,3.1376]
[1754034763779,5.1176,3644.6,3644.3,3.0]
[1754034764053,5.1176,3644.6,3644.2,3.20948538]
[1754034764054,5.1176,3644.6,3644.2,0.4654]
[1754034764418,0.7966,3644.5,3644.1,3.0]
[1754034764676,0.9334,3644.4,3644.1,3.0]
[1754034765775,0.7966,3644.3,3644.1,3.0]
[1754034766072,0.7966,3644.2,3643.7,3.4654]
[1754034766257,0.9342,3644.2,3643.7,6.34746177]
[1754034766460,0.9342,3644.2,3643.8,0.4654]
[1754034767555,0.9342,3644.2,3643.9,3.0]
[1754034767863,0.1376,3644.2,3643.9,3.4478]
[1754034768388,0.1376,3644.2,3644.1,5.74416179]
[1754034768551,0.1376,3644.2,3644.1,3.4478]
[1754034768729,0.1376,3644.2,3644.1,6.19196179]
[1754034769070,0.1376,3644.3,3644.2,3.0]
[1754034769765,0.1376,3644.3,3644.1,3.0]
[1754034771267,0.1376,3644.3,3643.6,17.51119197]
[1754034771470,0.1376,3644.0,3643.7,3.0]
[1754034771776,0.1376,3644.0,3643.8,0.4478]
[1754034771930,0.1376,3644.0,3643.8,3.4478]
[1754034772273,0.1376,3644.0,3643.9,2.74431241]
[1754034772437,4.308,3644.3,3644.2,3.0]
[1754034772643,4.4456,3644.3,3644.2,3.0]
[1754034772844,4.4456,3644.3,3644.2,3.4478]
[1754034773180,4.4456,3644.3,3644.2,3.0]
[1754034773391,0.1376,3644.3,3643.8,6.19217616]
[1754034773677,4.307,3644.2,3643.9,2.74429828]
[1754034773881,4.307,3644.2,3644.0,3.0]
[1754034774082,4.307,3644.2,3643.9,3.4478]
[1754034774281,4.307,3644.2,3643.9,0.4478]
[1754034774584,4.307,3644.2,3643.7,3.1376]
[1754034774800,5.0889,3644.2,3643.8,3.19212287]
[1754034775150,5.0889,3644.2,3643.8,0.4478]
[1754034775373,0.7819,3644.1,3643.7,5.88205446]
[1754034775676,0.7819,3644.1,3643.7,6.32985446]
[1754034776183,4.307,3644.2,3643.7,3.1376]
[1754034776384,0.9195,3644.0,3643.6,17.51119197]
[1754034776569,0.1376,3643.7,3643.1,17.51319197]
[1754034776884,5.0849,3643.6,3643.1,17.51319197]
[1754034777068,0.1376,3643.5,3643.1,20.25804705]
[1754034777285,0.1376,3643.5,3643.2,3.0]
[1754034777484,0.1376,3643.5,3643.2,0.4478]
[1754034777684,0.1376,3643.5,3643.3,3.4478]
[1754034777885,0.1376,3643.5,3643.3,0.4478]
[1754034778866,0.1376,3643.5,3643.3,2.74475896]
[1754034779078,0.1376,3643.5,3643.4,0.4478]
[1754034779699,4.303,3643.6,3643.5,3.0]
[1754034779903,4.299,3643.6,3643.5,4.2098]
[1754034780677,0.1376,3643.9,3643.4,0.1376]